bitfinex-derivatives/quotes_BTCF0:USTF0_20210705
["timestamp","ask_amount","ask_price","bid_price","bid_amount"]
[1625475607281,5.37902418,34228.0,34227.0,0.4815543]
[1625475607384,6.93566785,34228.0,34227.0,0.59840735]
[1625475607630,7.41681873,34228.0,34227.0,0.59840735]
[1625475607830,7.41681873,34228.0,34227.0,0.09830735]
[1625475608330,7.41681873,34228.0,34226.0,0.51292058]
[1625475608331,7.41681873,34228.0,34226.0,0.04048953]
[1625475608429,7.41681873,34228.0,34223.0,0.6857515]
[1625475608430,7.41681873,34228.0,34223.0,0.61014103]
[1625475608631,7.32871873,34228.0,34223.0,0.61014103]
[1625475608731,0.01417199,34227.0,34223.0,0.51784103]
[1625475608831,0.13217199,34227.0,34223.0,0.51784103]
[1625475609030,0.13217199,34227.0,34224.0,0.0044528]
[1625475609130,1.8612783,34227.0,34224.0,0.0044528]
[1625475609229,0.01417191,34226.0,34221.0,0.004]
[1625475609329,0.07317191,34226.0,34222.0,0.002]
[1625475609429,0.13217191,34226.0,34222.0,0.002]
[1625475609530,0.13217191,34226.0,34222.0,0.00645282]
[1625475609631,0.24057544,34223.0,34222.0,0.00645282]
[1625475609833,0.24057544,34223.0,34222.0,0.002]
[1625475610034,0.24057544,34223.0,34222.0,0.0064528]
[1625475610287,4.38740615,34223.0,34222.0,0.002]
[1625475610887,4.38740615,34223.0,34219.0,0.24057544]
[1625475610988,4.44640615,34223.0,34219.0,0.24057544]
[1625475611188,4.44640615,34223.0,34220.0,0.00445295]
[1625475611641,0.24057544,34221.0,34220.0,0.00445295]
[1625475611741,0.57411544,34221.0,34219.0,0.24057544]
[1625475611840,0.63311544,34221.0,34219.0,0.24057544]
[1625475611940,3.2249472,34221.0,34220.0,0.00445302]
[1625475612241,3.2249472,34221.0,34219.0,0.24057544]
[1625475612340,3.2229472,34221.0,34220.0,0.004]
[1625475615242,3.2209472,34221.0,34219.0,0.24057544]
[1625475615848,1.20782046,34220.0,34219.0,0.24057544]
[1625475616045,1.26682046,34220.0,34219.0,0.24057544]
[1625475622259,1.20782046,34220.0,34219.0,0.24057544]
[1625475622559,1.26682046,34220.0,34219.0,0.24057544]
[1625475622859,0.059,34220.0,34219.0,0.24057544]
[1625475623466,1.44322425,34221.0,34219.0,0.24057544]
[1625475623661,1.44322425,34221.0,34219.0,0.24502764]
[1625475623760,1.44322425,34221.0,34220.0,0.24057544]
[1625475623961,1.44322425,34221.0,34220.0,0.24502761]
[1625475624163,0.23657544,34221.0,34220.0,0.24502761]
[1625475625564,0.23657544,34221.0,34220.0,1.43664394]
[1625475625664,0.24257544,34223.0,34220.0,1.49564394]
[1625475625764,0.002,34223.0,34222.0,0.48115088]
[1625475625865,0.002,34223.0,34222.0,0.59915088]
[1625475626070,0.002,34223.0,34222.0,1.78945602]
[1625475626167,0.002,34223.0,34222.0,1.79390724]
[1625475626520,0.002,34223.0,34222.0,3.15305267]
[1625475628171,0.002,34223.0,34222.0,4.68122599]
[1625475628321,0.006,34224.0,34222.0,4.67522599]
[1625475628628,0.006,34224.0,34223.0,2.54733231]
[1625475628724,0.006,34224.0,34223.0,2.83394433]
[1625475630278,0.25057544,34228.0,34223.0,2.83394433]
[1625475630382,0.01,34228.0,34223.0,2.89294433]
[1625475630481,0.01,34228.0,34224.0,0.5]
[1625475630594,0.01,34228.0,34224.0,0.618]
[1625475630708,0.01,34228.0,34224.0,0.12245111]
[1625475630882,0.01,34228.0,34225.0,0.00445118]
[1625475630981,0.01,34228.0,34227.0,4.06672666]
[1625475631081,0.01,34228.0,34227.0,4.12572666]
[1625475631333,1.20605857,34239.0,34227.0,4.12372666]
[1625475631432,0.008,34228.0,34227.0,4.1281777]
[1625475631632,1.20605857,34239.0,34227.0,4.1281777]
[1625475631732,1.20605857,34239.0,34238.0,0.72172632]
[1625475631834,1.20578258,34240.0,34238.0,1.06055632]
[1625475632034,1.20578258,34240.0,34239.0,3.7403]
[1625475632133,1.20578258,34240.0,34239.0,3.7993]
[1625475632234,1.20578258,34240.0,34239.0,3.80375062]
[1625475632488,1.20578258,34240.0,34239.0,3.7993]
[1625475632639,1.20554719,34244.0,34239.0,3.7993]
[1625475633038,1.20494363,34246.0,34239.0,3.7993]
[1625475633240,1.20494363,34246.0,34239.0,0.059]
[1625475633742,1.20494363,34246.0,34245.0,0.48115088]
[1625475633844,1.20494363,34246.0,34245.0,0.81613088]
[1625475634045,1.20494363,34246.0,34245.0,0.87513088]
[1625475634994,1.20424217,34247.0,34245.0,0.87513088]
[1625475636301,1.20410659,34248.0,34245.0,0.87513088]
[1625475636601,1.44418842,34249.0,34245.0,0.87513088]
[1625475637153,1.20362483,34248.0,34245.0,0.87513088]
[1625475637552,1.03168394,34248.0,34245.0,0.87513088]
[1625475638105,1.27222935,34249.0,34245.0,0.87513088]
[1625475638556,0.24057544,34249.0,34245.0,0.87513088]
[1625475639159,1.27176335,34249.0,34245.0,0.87513088]
[1625475639710,1.03118263,34248.0,34245.0,0.54015088]
[1625475640661,1.03118263,34248.0,34245.0,0.48115088]
[1625475640761,1.2716091,34249.0,34245.0,0.48115088]
[1625475641262,1.2716091,34249.0,34245.0,0.54015088]
[1625475641368,1.2716091,34249.0,34245.0,0.48115088]
[1625475641464,1.2716091,34249.0,34245.0,0.54015088]
[1625475641562,1.2716091,34249.0,34245.0,0.48115088]
[1625475641962,1.2716091,34249.0,34245.0,0.59915088]
[1625475642464,1.03103366,34249.0,34245.0,0.59915088]
[1625475642666,1.03254268,34250.0,34245.0,0.59915088]
[1625475643767,1.03254268,34250.0,34249.0,0.24057544]
[1625475644621,1.03254268,34250.0,34249.0,0.57823544]
[1625475644722,1.03254268,34250.0,34249.0,0.63723544]
[1625475644822,0.002,34250.0,34249.0,5.60143544]
[1625475645671,0.002,34250.0,34249.0,0.69623544]
[1625475646279,0.002,34254.0,34249.0,0.69623544]
[1625475647832,0.002,34254.0,34253.0,0.48115088]
[1625475648033,0.002,34254.0,34253.0,0.54015088]
[1625475649635,0.002,34254.0,34253.0,0.48115088]
[1625475649736,0.002,34254.0,34253.0,0.54015088]
[1625475653193,0.006,34258.0,34253.0,1.13065088]
[1625475653394,0.53247672,34262.0,34253.0,1.13510241]
[1625475653593,0.72910437,34263.0,34253.0,1.13510241]
[1625475653696,1.36890717,34279.0,34257.0,2.17902102]
[1625475653794,1.02672315,34276.0,34263.0,0.059]
[1625475653893,1.02672315,34276.0,34263.0,0.118]
[1625475653993,1.02672315,34276.0,34263.0,0.059]
[1625475654295,1.59699918,34283.0,34264.0,0.0044495]
[1625475654418,1.59699918,34283.0,34264.0,0.2169195]
[1625475654494,1.53999918,34283.0,34264.0,0.2759195]
[1625475654600,1.71109118,34288.0,34267.0,1.00291436]
[1625475654601,1.0261526,34285.0,34267.0,1.00291436]
[1625475654697,1.0261526,34285.0,34267.0,1.06191436]
[1625475655094,1.0261526,34285.0,34268.0,0.00444932]
[1625475655195,1.0851526,34285.0,34268.0,0.06344932]
[1625475655297,1.1421526,34285.0,34268.0,0.06344932]
[1625475655395,1.2011526,34285.0,34268.0,0.059]
[1625475655495,1.1421526,34285.0,34268.0,0.059]
[1625475655595,1.2011526,34285.0,34268.0,0.059]
[1625475655697,0.175,34285.0,34269.0,1.00251769]
[1625475655897,0.175,34285.0,34284.0,0.24057544]
[1625475655996,0.059,34285.0,34284.0,7.544e-05]
[1625475656096,0.118,34285.0,34284.0,7.544e-05]
[1625475657000,1.14213697,34285.0,34284.0,7.544e-05]
[1625475657200,1.14213697,34285.0,34278.0,0.24057544]
[1625475657400,1.14213697,34285.0,34262.0,1.0586008]
[1625475657501,0.057,34284.0,34262.0,1.0016008]
[1625475657602,1.02415599,34283.0,34267.0,0.9924]
[1625475657701,1.19915599,34283.0,34267.0,0.9334]
[1625475657900,0.24057544,34272.0,34271.0,0.24057544]
[1625475658002,4.01007544,34272.0,34271.0,0.24057544]
[1625475658100,4.06907544,34272.0,34271.0,0.24057544]
[1625475658401,0.24057544,34272.0,34271.0,0.24057544]
[1625475658805,0.24057544,34272.0,34271.0,0.29957544]
[1625475659106,0.24057544,34275.0,34271.0,0.29957544]
[1625475659207,0.24057544,34275.0,34271.0,0.62260544]
[1625475659505,0.29957544,34275.0,34271.0,0.62260544]
[1625475659855,0.29957544,34275.0,34274.0,0.24057544]
[1625475659958,0.29957544,34275.0,34274.0,0.29957544]
[1625475660156,0.29957544,34275.0,34274.0,0.24057544]
[1625475662563,0.24057544,34275.0,34274.0,0.29957544]
[1625475663165,0.29957544,34275.0,34274.0,0.29957544]
[1625475663466,0.29957544,34275.0,34274.0,0.24057544]
[1625475663715,0.24057544,34275.0,34274.0,0.24057544]
[1625475663818,0.24057544,34275.0,34274.0,0.29957544]
[1625475663916,0.29957544,34275.0,34274.0,0.29957544]
[1625475664016,0.24057544,34275.0,34274.0,0.29957544]
[1625475664368,0.24057544,34275.0,34274.0,0.35857544]
[1625475664519,0.24057544,34275.0,34274.0,0.29957544]
[1625475667275,0.24057544,34275.0,34274.0,0.30157544]
[1625475668275,0.24057544,34275.0,34274.0,0.36057544]
[1625475668526,0.24057544,34275.0,34274.0,0.30157544]
[1625475668628,0.24057544,34275.0,34274.0,0.24257544]
[1625475668726,0.24057544,34275.0,34274.0,0.30157544]
[1625475669677,0.24057544,34275.0,34274.0,0.24257544]
[1625475669779,0.24057544,34275.0,34274.0,0.30157544]
[1625475669977,0.76920088,34275.0,34274.0,0.30157544]
[1625475670079,0.76920088,34275.0,34274.0,0.24257544]
[1625475672736,0.71020088,34275.0,34274.0,0.24257544]
[1625475672935,0.76920088,34275.0,34274.0,0.24257544]
[1625475677740,0.54015088,34275.0,34274.0,0.24257544]
[1625475679141,0.48115088,34275.0,34274.0,0.24257544]
[1625475679341,0.54015088,34275.0,34274.0,0.24257544]
[1625475681998,0.48115088,34275.0,34274.0,0.24257544]
[1625475682102,0.24057544,34275.0,34274.0,0.53179461]
[1625475682303,0.24057544,34275.0,34274.0,0.59079461]
[1625475687219,0.002,34281.0,34274.0,0.59079461]
[1625475687617,0.002,34281.0,34275.0,0.00445318]
[1625475687718,0.002,34281.0,34275.0,0.06345318]
[1625475688117,0.002,34281.0,34280.0,0.48115088]
[1625475688224,0.002,34281.0,34280.0,0.54015088]
[1625475688419,0.002,34281.0,34280.0,0.54460398]
[1625475688829,0.002,34281.0,34280.0,0.60360398]
[1625475690812,0.002,34281.0,34280.0,1.10360398]
[1625475690906,0.057,34298.0,34280.0,1.10360398]
[1625475690995,0.68297086,34299.0,34280.0,1.10360398]
[1625475691082,0.68297086,34299.0,34280.0,0.60360398]
[1625475691195,0.68297086,34299.0,34281.0,0.00445135]
[1625475691276,0.68297086,34299.0,34281.0,0.12245135]
[1625475691522,0.68297086,34299.0,34282.0,0.00445135]
[1625475691623,0.68297086,34299.0,34282.0,0.06345135]
[1625475691722,0.29757544,34301.0,34285.0,0.66345958]
[1625475691922,0.29757544,34301.0,34285.0,0.78145958]
[1625475692122,0.29757544,34301.0,34286.0,0.00445113]
[1625475692222,0.24057544,34301.0,34299.0,0.24057544]
[1625475692325,0.24057544,34301.0,34299.0,0.49029544]
[1625475692424,0.24057544,34301.0,34299.0,0.60829544]
[1625475692522,0.24057544,34305.0,34299.0,0.60829544]
[1625475692624,0.24057544,34305.0,34300.0,0.00444972]
[1625475692722,0.24057544,34305.0,34300.0,0.06344972]
[1625475692823,0.24057544,34305.0,34300.0,0.12244972]
[1625475692922,0.24057544,34305.0,34300.0,0.118]
[1625475693227,0.24057544,34307.0,34300.0,0.118]
[1625475693527,0.137,34313.0,34300.0,0.118]
[1625475693625,0.139,34313.0,34300.0,0.118]
[1625475694179,0.139,34313.0,34312.0,0.48115088]
[1625475694280,0.139,34313.0,34312.0,0.73134088]
[1625475695282,0.08,34313.0,34312.0,0.73134088]
[1625475695384,0.08,34313.0,34312.0,0.79034088]
[1625475695484,0.08,34313.0,34312.0,0.73134088]
[1625475695782,0.139,34313.0,34312.0,0.73134088]
[1625475696183,0.37957544,34313.0,34312.0,0.73134088]
[1625475697286,0.37957544,34313.0,34312.0,0.73334088]
[1625475697490,0.139,34313.0,34312.0,0.73334088]
[1625475698190,0.37957544,34313.0,34312.0,0.73334088]
[1625475698692,0.37957544,34313.0,34312.0,0.79234088]
[1625475698992,0.37957544,34313.0,34312.0,0.73334088]
[1625475701950,0.37957544,34313.0,34312.0,0.48315088]
[1625475702047,0.139,34313.0,34312.0,0.48315088]
[1625475702149,0.139,34313.0,34312.0,0.77571088]
[1625475705705,0.36226,34313.0,34312.0,0.48315088]
[1625475705906,0.42126,34313.0,34310.0,0.004]
[1625475706105,0.36226,34313.0,34310.0,0.004]
[1625475706205,0.42126,34313.0,34310.0,0.004]
[1625475706308,0.42126,34313.0,34312.0,0.002]
[1625475706407,1.38386662,34313.0,34312.0,0.002]
[1625475706506,1.44286662,34313.0,34312.0,0.002]
[1625475706707,1.38386662,34313.0,34312.0,0.002]
[1625475706809,0.87333394,34313.0,34312.0,0.002]
[1625475707259,0.36226,34313.0,34312.0,0.002]
[1625475707458,0.42126,34313.0,34312.0,0.002]
[1625475707658,1.61375109,34313.0,34312.0,0.002]
[1625475708360,2.09490197,34313.0,34312.0,0.002]
[1625475708560,1.35450282,34313.0,34312.0,0.002]
[1625475708659,1.41350282,34313.0,34312.0,0.002]
[1625475709009,1.41350282,34313.0,34306.0,0.008]
[1625475709210,0.5,34312.0,34306.0,0.008]
[1625475709315,0.618,34312.0,34306.0,0.008]
[1625475709510,0.0878,34311.0,34306.0,0.008]
[1625475709610,0.051,34305.0,34304.0,0.01]
[1625475709710,0.36686,34305.0,34304.0,0.01]
[1625475710067,4.22206,34305.0,34304.0,0.01]
[1625475710314,4.94378632,34305.0,34304.0,0.01]
[1625475710413,5.45532728,34305.0,34304.0,0.01]
[1625475710514,1.60012728,34305.0,34304.0,0.01]
[1625475711317,1.08858632,34305.0,34304.0,0.01]
[1625475712369,1.08858632,34305.0,34304.0,0.008]
[1625475712370,1.08658632,34305.0,34304.0,0.008]
[1625475713870,2.28220629,34305.0,34304.0,0.008]
[1625475714572,2.28220629,34305.0,34302.0,0.0001]
[1625475714773,0.51244405,34304.0,34302.0,0.0001]
[1625475714874,0.57144405,34304.0,34302.0,0.0001]
[1625475715325,0.57144405,34304.0,34300.0,0.002]
[1625475716026,0.63044405,34304.0,34300.0,0.002]
[1625475716326,0.24057544,34301.0,34300.0,0.002]
[1625475716425,0.29957544,34301.0,34300.0,0.002]
[1625475716525,0.35857544,34301.0,34300.0,0.002]
[1625475717679,0.29957544,34301.0,34300.0,0.002]
[1625475721134,0.24057544,34301.0,34300.0,0.002]
[1625475721937,0.24057544,34301.0,34300.0,0.31533]
[1625475722037,0.24057544,34301.0,34300.0,0.43778236]
[1625475722350,0.24057544,34301.0,34300.0,0.91893324]
[1625475723437,0.24057544,34301.0,34300.0,1.41449952]
[1625475723888,0.24057544,34301.0,34300.0,0.91893324]
[1625475724738,0.48115088,34305.0,34300.0,0.91893324]
[1625475724839,0.48115088,34305.0,34300.0,1.41447441]
[1625475725289,0.48115088,34305.0,34301.0,0.00445113]
[1625475725391,0.48115088,34305.0,34301.0,0.12245113]
[1625475725761,0.48115088,34305.0,34301.0,0.61818838]
[1625475725849,0.48115088,34305.0,34302.0,0.00445089]
[1625475725943,0.48115088,34305.0,34302.0,0.06345089]
[1625475726047,0.48115088,34305.0,34302.0,0.12245089]
[1625475726242,0.48115088,34305.0,34302.0,0.61806523]
[1625475726345,0.48115088,34305.0,34303.0,0.00445089]
[1625475726443,0.24057544,34305.0,34304.0,0.24057544]
[1625475726543,0.24057544,34305.0,34304.0,0.29957544]
[1625475726846,0.24057544,34305.0,34304.0,0.30402745]
[1625475727251,0.24457544,34305.0,34304.0,0.30202745]
[1625475727544,0.24457544,34305.0,34304.0,0.36102745]
[1625475727898,0.008,34309.0,34304.0,0.36102745]
[1625475728198,0.008,34309.0,34305.0,0.0044506]
[1625475728398,0.008,34309.0,34308.0,0.48115088]
[1625475728504,0.008,34309.0,34308.0,0.82490088]
[1625475728749,0.008,34309.0,34308.0,0.82935142]
[1625475730252,0.008,34310.0,34308.0,0.82335142]
[1625475730453,0.008,34310.0,34309.0,0.24057544]
[1625475730653,0.008,34310.0,34309.0,0.30402593]
[1625475731158,0.008,34310.0,34309.0,0.29957544]
[1625475732256,0.008,34310.0,34309.0,0.30402608]
[1625475732505,0.008,34310.0,34309.0,0.29957544]
[1625475733258,0.008,34310.0,34309.0,0.29357544]
[1625475733811,0.008,34310.0,34309.0,0.29802649]
[1625475735162,0.008,34310.0,34309.0,0.29357544]
[1625475736267,0.08,34313.0,34309.0,0.29357544]
[1625475736364,0.139,34313.0,34309.0,0.29357544]
[1625475736465,0.37957544,34313.0,34312.0,0.24057544]
[1625475736564,0.37957544,34313.0,34312.0,0.29957544]
[1625475737465,0.139,34313.0,34312.0,0.29957544]
[1625475737665,0.08,34313.0,34312.0,0.29957544]
[1625475738417,0.139,34313.0,34312.0,0.29957544]
[1625475739169,0.139,34313.0,34312.0,0.24057544]
[1625475739277,0.139,34313.0,34309.0,0.23457544]
[1625475739370,0.36435,34313.0,34309.0,0.29357544]
[1625475739575,0.42335,34313.0,34309.0,0.23457544]
[1625475739670,0.36435,34313.0,34309.0,0.23457544]
[1625475739771,0.85523938,34310.0,34309.0,0.23457544]
[1625475739869,0.91423938,34310.0,34309.0,0.23457544]
[1625475740372,0.059,34310.0,34309.0,0.23457544]
[1625475740471,0.54015088,34310.0,34309.0,0.23457544]
[1625475740629,0.88261917,34310.0,34309.0,0.23457544]
[1625475741373,0.54015088,34310.0,34309.0,0.23457544]
[1625475741627,0.88267018,34310.0,34309.0,0.23457544]
[1625475741979,1.05385281,34310.0,34309.0,0.23457544]
[1625475742482,1.73945419,34310.0,34309.0,0.23457544]
[1625475743335,0.8830482,34310.0,34309.0,0.23457544]
[1625475744139,0.54015088,34310.0,34309.0,0.23457544]
[1625475744485,1.74130359,34310.0,34309.0,0.23457544]
[1625475744885,2.77076465,34310.0,34309.0,0.23457544]
[1625475746639,3.97324841,34310.0,34309.0,0.23457544]
[1625475746988,2.77076465,34310.0,34309.0,0.23457544]
[1625475748694,3.9748072,34310.0,34309.0,0.23457544]
[1625475749945,3.9748072,34310.0,34309.0,0.23902987]
[1625475750497,3.9748072,34310.0,34309.0,0.23457544]
[1625475750799,3.9748072,34310.0,34309.0,0.23902992]
[1625475752101,3.9158072,34310.0,34309.0,0.23902992]
[1625475752303,3.9158072,34310.0,34309.0,0.29802992]
[1625475752404,2.71176465,34310.0,34309.0,0.63197995]
[1625475752804,1.68230359,34310.0,34309.0,1.46635983]
[1625475753507,1.68230359,34310.0,34309.0,2.46753593]
[1625475754809,1.68230359,34310.0,34309.0,1.46635983]
[1625475755310,0.82538057,34310.0,34309.0,2.46729636]
[1625475757565,0.48115088,34310.0,34309.0,2.46729636]
[1625475758567,0.48115088,34310.0,34309.0,3.63432815]
[1625475760172,0.48115088,34310.0,34309.0,2.46729636]
[1625475760372,0.24057544,34310.0,34309.0,2.46729636]
[1625475760973,0.24057544,34310.0,34309.0,3.63498331]
[1625475762729,0.51624111,34312.0,34309.0,3.63498331]
[1625475762977,0.51624111,34312.0,34311.0,2.16808265]
[1625475763078,0.51624111,34312.0,34311.0,2.22708265]
[1625475763378,0.51624111,34312.0,34311.0,2.23153591]
[1625475763981,0.51613196,34313.0,34311.0,2.23153591]
[1625475764434,0.51613196,34313.0,34312.0,0.00445326]
[1625475764534,0.1721013,34313.0,34312.0,2.23248996]
[1625475764737,0.1721013,34313.0,34312.0,2.4730654]
[1625475765786,0.51610094,34313.0,34312.0,2.4730654]
[1625475767242,0.51610094,34313.0,34312.0,1.47197154]
[1625475767991,0.59596003,34314.0,34312.0,2.47237554]
[1625475767992,0.25205398,34314.0,34312.0,2.47237554]
[1625475768440,0.25205398,34314.0,34313.0,0.00444902]
[1625475768540,0.25205398,34314.0,34313.0,0.06344902]
[1625475768641,0.08,34314.0,34313.0,3.3960322]
[1625475768741,0.08,34314.0,34313.0,3.63660764]
[1625475769141,0.08,34314.0,34313.0,3.69560764]
[1625475770045,0.08,34314.0,34313.0,5.02771235]
[1625475773703,0.08,34314.0,34313.0,6.52436067]
[1625475774405,0.08,34314.0,34313.0,5.02771235]
[1625475775458,0.08,34314.0,34313.0,6.52152521]
[1625475780265,0.08,34314.0,34313.0,6.46252521]
[1625475780415,0.08,34314.0,34313.0,6.52152521]
[1625475780516,0.08,34314.0,34313.0,1.85683732]
[1625475781017,0.08,34314.0,34313.0,6.50523599]
[1625475782323,0.0001,34314.0,34313.0,6.50523599]
[1625475782827,0.002,34318.0,34315.0,0.0589]
[1625475782925,0.002,34318.0,34315.0,0.35713]
[1625475783026,0.002,34318.0,34315.0,0.41613]
[1625475783128,0.002,34318.0,34316.0,0.00444712]
[1625475783230,0.002,34318.0,34317.0,4.7469]
[1625475783325,0.002,34318.0,34317.0,4.8059]
[1625475783426,0.002,34318.0,34317.0,4.8649]
[1625475783578,0.002,34318.0,34317.0,10.99660112]
[1625475783777,0.002,34318.0,34317.0,11.00104814]
[1625475784779,0.002,34318.0,34317.0,6.25414814]
[1625475784879,0.002,34318.0,34317.0,6.73529902]
[1625475785080,0.20608977,34350.0,34317.0,6.79229902]
[1625475785183,0.58640186,34332.0,34323.0,0.059]
[1625475785280,0.58640186,34332.0,34323.0,0.39135]
[1625475785381,0.17188898,34332.0,34329.0,2.15022821]
[1625475785482,0.11288898,34332.0,34330.0,0.557]
[1625475785581,0.18553478,34335.0,34330.0,0.78367]
[1625475785682,0.18553478,34335.0,34330.0,0.78811495]
[1625475785784,0.93165134,34337.0,34330.0,0.90611495]
[1625475785880,0.93165134,34337.0,34335.0,0.059]
[1625475785983,0.93165134,34337.0,34335.0,0.118]
[1625475786080,0.55565134,34337.0,34336.0,0.057]
[1625475786181,0.32665134,34337.0,34336.0,0.17944468]
[1625475786283,0.51442368,34348.0,34336.0,0.12044468]
[1625475786681,0.51442368,34348.0,34336.0,0.62044468]
[1625475786780,0.51442368,34348.0,34337.0,0.00444268]
[1625475786883,0.51442368,34348.0,34347.0,0.72172632]
[1625475786981,0.24057544,34352.0,34347.0,0.72172632]
[1625475786982,0.24057544,34352.0,34347.0,0.78072632]
[1625475787181,0.24057544,34352.0,34347.0,0.95811632]
[1625475787282,0.24057544,34352.0,34347.0,1.01711632]
[1625475788184,0.29957544,34352.0,34347.0,1.01711632]
[1625475788286,0.29957544,34352.0,34347.0,0.78072632]
[1625475788946,0.29957544,34352.0,34351.0,0.24057544]
[1625475789190,0.38527725,34352.0,34351.0,0.24057544]
[1625475789891,0.29957544,34352.0,34351.0,0.24057544]
[1625475789993,0.29957544,34352.0,34343.0,0.08206729]
[1625475790091,0.50610544,34352.0,34343.0,0.14106729]
[1625475790340,0.50610544,34352.0,34343.0,0.059]
[1625475790891,0.48115088,34344.0,34343.0,0.29957544]
[1625475790993,0.42415088,34344.0,34343.0,0.29957544]
[1625475791294,0.29757544,34352.0,34343.0,0.29957544]
[1625475791392,0.29957544,34352.0,34343.0,0.29957544]
[1625475791494,0.29957544,34352.0,34343.0,0.38150187]
[1625475791947,0.29957544,34352.0,34343.0,0.29957544]
[1625475792245,0.29957544,34352.0,34343.0,0.50873544]
[1625475792946,0.54015088,34352.0,34351.0,0.24057544]
[1625475794297,0.54015088,34352.0,34343.0,0.24057544]
[1625475794403,0.54015088,34352.0,34343.0,0.29957544]
[1625475794948,0.24057544,34344.0,34343.0,0.29957544]
[1625475795047,0.29957544,34344.0,34343.0,0.29957544]
[1625475796251,0.28957544,34344.0,34343.0,0.29957544]
[1625475796351,0.53815088,34352.0,34343.0,0.30957544]
[1625475796457,0.24057544,34352.0,34343.0,0.63184544]
[1625475796951,0.24057544,34352.0,34351.0,0.48115088]
[1625475797053,0.24057544,34352.0,34351.0,0.83684088]
[1625475797456,0.24057544,34356.0,34351.0,0.89584088]
[1625475797655,0.9511,34360.0,34351.0,0.89584088]
[1625475798959,0.9511,34360.0,34359.0,0.48115088]
[1625475799058,0.9511,34360.0,34359.0,0.74826088]
[1625475799309,0.9571,34360.0,34359.0,0.74826088]
[1625475800363,0.9571,34360.0,34359.0,0.48115088]
[1625475802270,0.9511,34360.0,34359.0,0.47915088]
[1625475802367,0.9571,34360.0,34359.0,0.47915088]
[1625475805272,0.9571,34360.0,34359.0,0.47715088]
[1625475809385,0.9511,34360.0,34359.0,0.47715088]
[1625475815251,0.9511,34360.0,34359.0,0.48159709]
[1625475815851,0.9511,34360.0,34359.0,0.54059709]
[1625475818115,0.9511,34360.0,34359.0,0.80817709]
[1625475819314,1.0101,34360.0,34359.0,0.80817709]
[1625475819414,1.0101,34360.0,34359.0,0.54059709]
[1625475822869,0.9511,34360.0,34359.0,0.54059709]
[1625475823169,0.9511,34360.0,34359.0,0.48159709]
[1625475823271,1.0101,34360.0,34359.0,0.48159709]
[1625475823369,1.0691,34360.0,34359.0,0.48159709]
[1625475823470,1.0691,34360.0,34356.0,0.004]
[1625475824471,1.0691,34360.0,34357.0,0.0044492]
[1625475825123,0.24057544,34358.0,34357.0,0.0044492]
[1625475825221,0.52581544,34358.0,34357.0,0.0044492]
[1625475825321,0.58481544,34358.0,34357.0,0.0044492]
[1625475825571,0.58481544,34358.0,34356.0,0.004]
[1625475826425,0.58481544,34358.0,34357.0,0.00442739]
[1625475826726,0.59897864,34358.0,34357.0,0.00442739]
[1625475826926,0.58481544,34358.0,34357.0,0.00442739]
[1625475827528,0.52581544,34358.0,34355.0,0.0044489]
[1625475827630,0.58481544,34358.0,34355.0,0.0044489]
[1625475827728,0.58481544,34358.0,34357.0,0.00444922]
[1625475828033,0.58481544,34358.0,34355.0,0.00444912]
[1625475828529,0.01409253,34357.0,34355.0,0.00444912]
[1625475828630,0.07309253,34357.0,34355.0,0.00444912]
[1625475828732,0.13209253,34357.0,34355.0,0.00444912]
[1625475829138,0.118,34357.0,34355.0,0.00444912]
[1625475832243,0.08557828,34356.0,34355.0,0.00444912]
[1625475832348,0.14457828,34356.0,34355.0,0.00444912]
[1625475833189,0.38515372,34356.0,34355.0,0.00444912]
[1625475833794,0.29957544,34356.0,34355.0,0.00444912]
[1625475835944,0.29957544,34356.0,34354.0,0.004]
[1625475836246,0.29957544,34356.0,34352.0,0.004]
[1625475836550,0.79957544,34356.0,34348.0,0.00454949]
[1625475836676,0.0857534,34353.0,34348.0,0.00454949]
[1625475836857,0.2037534,34353.0,34348.0,0.00454949]
[1625475837051,0.01410666,34352.0,34348.0,0.00454949]
[1625475837153,0.48115088,34349.0,34348.0,0.00454949]
[1625475837250,0.80157088,34349.0,34348.0,0.00454949]
[1625475837364,1.82889799,34349.0,34348.0,0.00454949]
[1625475837549,1.82889799,34349.0,34346.0,4.949e-05]
[1625475837749,1.82889799,34349.0,34340.0,0.08219145]
[1625475837851,1.82889799,34349.0,34345.0,0.00444522]
[1625475837852,1.02734169,34348.0,34345.0,0.00444522]
[1625475837952,1.08634169,34348.0,34345.0,0.00444522]
[1625475838168,1.08634169,34348.0,34340.0,0.00444525]
[1625475838354,1.02851827,34346.0,34340.0,0.08676431]
[1625475838451,1.14651827,34346.0,34340.0,0.08676431]
[1625475838751,1.14651827,34346.0,34341.0,0.00444533]
[1625475838855,0.08586784,34343.0,34341.0,0.00444533]
[1625475838951,0.94588611,34346.0,34341.0,0.00444533]
[1625475839051,0.059,34343.0,34341.0,0.00444533]
[1625475839151,0.72172632,34342.0,34341.0,0.00444533]
[1625475839251,0.78072632,34342.0,34341.0,0.00444533]
[1625475839351,1.11845632,34342.0,34341.0,0.00444533]
[1625475839752,1.11845632,34342.0,34337.0,0.00444539]
[1625475840706,1.11845632,34342.0,34337.0,1.15851772]
[1625475841103,1.11845632,34342.0,34338.0,0.00444539]
[1625475841203,1.35903176,34342.0,34338.0,0.00444539]
[1625475841904,1.35903176,34342.0,34336.0,1.39506985]
[1625475841905,1.35903176,34342.0,34337.0,0.00444542]
[1625475842057,1.41803176,34342.0,34337.0,0.00444542]
[1625475843154,0.24057544,34338.0,34337.0,0.00444542]
[1625475845910,0.24057544,34338.0,34337.0,1.88064872]
[1625475846411,0.24057544,34338.0,34337.0,3.20092604]
[1625475847063,0.24057544,34338.0,34337.0,3.25992604]
[1625475847168,0.24057544,34338.0,34337.0,3.20092604]
[1625475847362,0.24057544,34338.0,34337.0,3.25992604]
[1625475847461,0.24057544,34338.0,34337.0,3.20092604]
[1625475847816,0.24057544,34338.0,34337.0,3.25992604]
[1625475847913,0.24057544,34338.0,34337.0,3.20092604]
[1625475848014,0.24057544,34338.0,34337.0,4.74367769]
[1625475848117,0.24057544,34338.0,34337.0,4.68467769]
[1625475849117,0.24057544,34338.0,34337.0,3.20092604]
[1625475850922,0.24057544,34338.0,34337.0,4.684516]
[1625475851024,0.24057544,34338.0,34337.0,4.936216]
[1625475851424,0.24057544,34338.0,34337.0,9.020916]
[1625475851926,0.24057544,34338.0,34337.0,4.936216]
[1625475852178,0.24057544,34338.0,34337.0,1.79873538]
[1625475852626,0.24057544,34338.0,34337.0,4.93066164]